bitfinex-derivatives/quotes_SOLF0:USTF0_20250914
["timestamp","ask_amount","ask_price","bid_price","bid_amount"]
[1757855004751,4.483497,244.82,244.51,7.01]
[1757855004951,28.773497,244.81,244.51,7.01]
[1757855005247,4.483497,244.79,244.51,7.01]
[1757855005448,34.973497,244.8,244.51,7.01]
[1757855005853,16.733497,244.8,244.51,7.01]
[1757855006046,4.483497,244.79,244.51,7.01]
[1757855006246,12.02,244.78,244.51,7.01]
[1757855006644,4.483497,244.77,244.51,7.01]
[1757855006850,4.483497,244.78,244.51,7.01]
[1757855007046,4.483497,244.79,244.51,7.01]
[1757855007249,12.04,244.78,244.51,7.01]
[1757855007551,4.483497,244.79,244.51,7.01]
[1757855008049,0.03,244.77,244.51,7.01]
[1757855008247,16.78,244.76,244.51,7.01]
[1757855008449,0.03,244.75,244.51,7.01]
[1757855008645,17.5,244.74,244.51,7.01]
[1757855008852,17.5,244.74,244.51,69.01]
[1757855009052,17.5,244.74,244.52,6.6]
[1757855010048,0.03,244.73,244.54,6.6]
[1757855010848,17.5,244.74,244.54,6.6]
[1757855011049,0.03,244.73,244.54,6.6]
[1757855011657,7.1,244.72,244.54,6.6]
[1757855012252,10.36,244.71,244.54,6.6]
[1757855015158,0.03,244.73,244.54,6.6]
[1757855015358,10.84,244.72,244.54,6.6]
[1757855015756,0.03,244.71,244.54,6.6]
[1757855018657,10.32,244.7,244.54,6.6]
[1757855018856,14.3,244.7,244.54,6.6]
[1757855019365,0.03,244.69,244.54,6.6]
[1757855019954,14.3,244.7,244.54,6.6]
[1757855020161,0.03,244.69,244.54,6.6]
[1757855021263,14.3,244.7,244.54,6.6]
[1757855021667,0.03,244.69,244.54,6.6]
[1757855021965,14.3,244.7,244.54,6.6]
[1757855022264,0.03,244.69,244.54,6.6]
[1757855022858,14.3,244.7,244.54,6.6]
[1757855023062,0.03,244.69,244.54,6.6]
[1757855023567,26.64,244.68,244.54,6.6]
[1757855023965,51.8,244.67,244.54,6.6]
[1757855024269,0.03,244.69,244.54,6.6]
[1757855024473,75.42,244.68,244.54,6.6]
[1757855027864,0.03,244.67,244.54,6.6]
[1757855028567,97.63,244.67,244.54,6.6]
[1757855028971,0.03,244.66,244.54,6.6]
[1757855030267,102.07,244.66,244.54,6.6]
[1757855031867,0.03,244.65,244.54,6.6]
[1757855032966,102.04,244.64,244.54,6.6]
[1757855033469,0.03,244.63,244.54,6.6]
[1757855033663,102.05,244.63,244.54,6.6]
[1757855034064,102.03,244.63,244.54,6.6]
[1757855035171,0.03,244.63,244.54,6.6]
[1757855035372,102.13,244.63,244.54,6.6]
[1757855036570,102.25,244.63,244.54,6.6]
[1757855037378,102.22,244.63,244.45,6.59]
[1757855037584,0.04,244.62,244.45,6.59]
[1757855038082,0.03,244.6,244.45,6.59]
[1757855038384,0.03,244.58,244.45,6.59]
[1757855039485,97.26,244.58,244.45,6.59]
[1757855039778,0.03,244.64,244.45,13.79]
[1757855039979,0.03,244.71,244.46,6.77]
[1757855040184,0.03,244.71,244.48,6.77]
[1757855040378,0.03,244.71,244.5,6.77]
[1757855040679,0.03,244.71,244.52,6.77]
[1757855040981,0.03,244.71,244.44,4.55825819]
[1757855041284,22.76,244.72,244.45,6.77]
[1757855041479,0.03,244.71,244.46,41.32]
[1757855041679,0.03,244.71,244.47,6.77]
[1757855042077,0.03,244.71,244.48,62.62]
[1757855042280,0.03,244.71,244.49,6.77]
[1757855042485,22.76,244.72,244.49,79.22]
[1757855042782,0.03,244.71,244.5,6.77]
[1757855043676,22.76,244.72,244.5,6.77]
[1757855044282,0.03,244.71,244.5,6.77]
[1757855044481,22.76,244.72,244.5,6.77]
[1757855044681,0.03,244.71,244.5,6.77]
[1757855046486,0.03,244.71,244.51,6.77]
[1757855047791,0.03,244.71,244.53,6.77]
[1757855048679,0.03,244.71,244.49,4.55825819]
[1757855048888,22.76,244.72,244.5,6.77]
[1757855049082,22.76,244.72,244.52,6.77]
[1757855049287,0.03,244.71,244.52,6.77]
[1757855050091,0.03,244.71,244.53,6.77]
[1757855051789,22.76,244.72,244.53,6.77]
[1757855051991,0.03,244.71,244.53,6.77]
[1757855052186,22.76,244.72,244.53,6.77]
[1757855052387,0.03,244.71,244.53,6.77]
[1757855052888,0.74151094,244.71,244.53,6.77]
[1757855054280,0.74151094,244.71,244.54,6.77]
[1757855055190,0.03,244.7,244.54,6.77]
[1757855056486,0.03,244.7,244.55,6.77]
[1757855058086,0.03,244.7,244.56,6.77]
[1757855059793,22.76,244.72,244.56,6.77]
[1757855060593,0.03,244.74,244.56,11.32825819]
[1757855060890,0.03,244.74,244.57,6.77]
[1757855061083,0.03,244.74,244.59,6.77]
[1757855061484,0.03,244.79,244.59,6.77]
[1757855062086,0.03,244.79,244.59,11.32825819]
[1757855062286,0.03,244.79,244.6,18.35]
[1757855062490,0.03,244.79,244.62,6.77]
[1757855062689,57.64480546,244.8,244.62,6.77]
[1757855062993,0.03,244.79,244.64,6.77]
[1757855066994,274.67,244.83,244.64,6.77]
[1757855067393,0.03,244.83,244.64,6.77]
[1757855067599,11.98826613,244.83,244.64,6.77]
[1757855067892,0.03,244.83,244.64,6.77]
[1757855068097,0.71107479,244.88,244.64,6.77]
[1757855068294,0.02,244.89,244.64,4.55825819]
[1757855068597,0.02,244.89,244.65,109.27]
[1757855068795,0.02,244.89,244.66,7.03]
[1757855069187,0.02,244.9,244.67,74.3]
[1757855069392,0.71100215,244.91,244.68,47.78]
[1757855069393,12.7669711,244.91,244.68,47.78]
[1757855069597,0.02,244.9,244.7,7.03]
[1757855069793,0.02,244.9,244.71,7.03]
[1757855069994,0.73100215,244.91,244.71,7.03]
[1757855070200,12.08870378,244.91,244.73,7.03]
[1757855070398,0.02,244.91,244.73,7.03]
[1757855070899,0.02,244.91,244.75,7.03]
[1757855072300,0.02,244.93,244.75,7.03]
[1757855072499,12.3034778,244.93,244.75,7.03]
[1757855072700,9.76,244.94,244.75,7.03]
[1757855072897,0.02,244.93,244.75,7.03]
[1757855073097,9.76,244.94,244.75,7.03]
[1757855073294,0.02,244.93,244.75,7.03]
[1757855073503,9.76,244.94,244.75,7.03]
[1757855073998,0.02,244.93,244.75,7.03]
[1757855074402,9.76,244.94,244.75,7.03]
[1757855074601,21.70922364,244.94,244.75,7.03]
[1757855074797,0.02,244.93,244.75,7.03]
[1757855075500,21.70922364,244.94,244.75,7.03]
[1757855075695,26.19272064,244.94,244.75,7.03]
[1757855076500,0.02,244.93,244.75,7.03]
[1757855077498,38.44272064,244.94,244.75,7.03]
[1757855077702,0.02,244.93,244.75,7.03]
[1757855085907,22.42008055,244.94,244.75,7.03]
[1757855086100,0.02,244.93,244.75,7.03]
[1757855087706,22.42008055,244.94,244.75,7.03]
[1757855088109,0.02,244.93,244.75,7.03]
[1757855088308,22.42008055,244.94,244.75,7.03]
[1757855088506,0.02,244.93,244.75,7.03]
[1757855088906,22.42008055,244.94,244.75,7.03]
[1757855089112,0.02,244.93,244.75,7.03]
[1757855095918,21.70922364,244.94,244.75,7.03]
[1757855097117,21.70922364,244.94,244.76,8.06]
[1757855097319,21.70922364,244.94,244.77,6.97]
[1757855098216,21.70922364,244.94,244.78,6.61]
[1757855099114,0.02,244.93,244.78,6.61]
[1757855103023,21.70922364,244.94,244.78,6.61]
[1757855103220,21.70922364,244.94,244.8,6.61]
[1757855110133,0.02,244.93,244.8,6.61]
[1757855114132,2.77696879,244.92,244.8,6.61]
[1757855114322,2.77696879,244.91,244.81,30.3]
[1757855114523,101.92,244.99,244.81,30.3]
[1757855114524,101.92,244.99,244.82,6.61]
[1757855114727,2.7767296,244.98,244.82,6.61]
[1757855114928,2.7767296,244.97,244.82,6.61]
[1757855115130,2.7767296,244.96,244.82,6.61]
[1757855115330,2.7767296,244.95,244.82,6.61]
[1757855115527,121.79314331,245.03,244.82,6.61]
[1757855115528,12.44067318,245.0,244.82,6.61]
[1757855116031,2.77650876,244.99,244.82,6.61]
[1757855116429,105.78964631,245.03,244.82,6.61]
[1757855116732,2.77494797,245.02,244.82,6.61]
[1757855116931,2.77494797,245.01,244.84,6.61]
[1757855117133,105.78964631,245.03,244.84,6.61]
[1757855117329,2.77361849,245.02,244.86,6.61]
[1757855118237,105.78964631,245.03,244.86,6.61]
[1757855118437,105.78964631,245.03,244.88,6.61]
[1757855118634,2.76974077,245.02,244.88,6.61]
[1757855118838,105.78964631,245.03,244.9,6.61]
[1757855119338,105.78964631,245.03,244.91,35.54]
[1757855119528,105.78964631,245.03,244.92,6.61]
[1757855121737,0.02,245.1,244.92,6.61]
[1757855121937,2.786943,245.1,244.94,6.61]
[1757855122133,14.90084531,245.1,244.94,6.61]
[1757855122338,2.766943,245.09,244.94,6.61]
[1757855122637,2.766943,245.08,244.94,6.61]
[1757855122839,2.766943,245.07,244.94,29.28]
[1757855123044,0.02,245.1,244.95,6.61]
[1757855123245,14.92697801,245.1,244.95,6.61]
[1757855123438,2.76616407,245.09,244.95,6.61]
[1757855123938,0.02,245.07,244.95,6.61]
[1757855124135,0.02,245.06,244.95,6.61]
[1757855139551,2.75957491,245.09,244.95,6.61]
[1757855139751,2.75957491,245.09,244.84,6.59]
[1757855139956,2.75957491,245.09,244.86,6.59]
[1757855140156,2.75957491,245.09,244.87,6.59]
[1757855142260,2.75957491,245.08,244.87,6.59]
[1757855142461,2.75957491,245.07,244.87,6.59]
[1757855142662,2.75957491,245.06,244.87,6.59]
[1757855142861,2.75957491,245.05,244.87,6.59]
[1757855143060,2.75957491,245.04,244.87,6.59]
[1757855143253,89.0,245.09,244.87,6.59]
[1757855143457,2.76198727,245.08,244.87,6.59]
[1757855144259,2.76198727,245.07,244.87,6.59]
[1757855144460,2.76198727,245.06,244.89,6.59]
[1757855144760,2.76198727,245.05,244.89,6.59]
[1757855145060,2.76198727,245.04,244.89,6.59]
[1757855145254,12.10144633,245.1,244.89,6.59]
[1757855145560,2.76008195,245.09,244.89,6.59]
[1757855145755,2.76008195,245.08,244.89,6.59]
[1757855145956,2.76008195,245.07,244.89,6.59]
[1757855146154,2.76008195,245.06,244.89,6.59]
[1757855146356,12.30300501,245.11,244.89,6.59]
[1757855146556,2.76070849,245.1,244.89,6.59]
[1757855146760,2.76070849,245.09,244.91,6.59]
[1757855146958,2.76070849,245.08,244.91,6.59]
[1757855147156,0.7103128,245.14,244.91,6.59]
[1757855147356,2.76135878,245.13,244.91,6.59]
[1757855147556,2.76135878,245.12,244.91,6.59]
[1757855147757,2.76135878,245.11,244.91,6.59]
[1757855147960,2.76135878,245.1,244.92,17.5]
[1757855148256,2.76135878,245.09,244.93,6.59]
[1757855148561,2.76135878,245.08,244.93,6.59]
[1757855148861,0.7103128,245.14,244.93,6.59]
[1757855149065,2.76219219,245.13,244.93,6.59]
[1757855149266,2.76219219,245.12,244.93,6.59]
[1757855149465,2.76219219,245.11,244.93,6.59]
[1757855149665,2.76219219,245.1,244.93,6.59]
[1757855150065,2.76219219,245.09,244.93,6.59]
[1757855150366,0.7103128,245.14,244.93,6.59]
[1757855150367,2.76219219,245.08,244.93,6.59]
[1757855150567,0.7103128,245.14,244.93,6.59]
[1757855150865,2.7629137,245.13,244.93,6.59]
[1757855151066,2.7629137,245.12,244.93,6.59]
[1757855151266,2.7629137,245.11,244.93,24.17]
[1757855151560,0.7103128,245.14,244.93,24.17]
[1757855151561,2.7629137,245.1,244.93,6.59]
[1757855151761,2.7629137,245.09,244.93,6.59]
[1757855151967,2.7629137,245.08,244.93,6.59]
[1757855152166,2.7629137,245.07,244.93,6.59]
[1757855152462,2.7629137,245.06,244.93,6.59]
[1757855152669,2.7629137,245.05,244.93,6.59]
[1757855152869,2.7629137,245.04,244.93,6.59]
[1757855153056,16.94939443,245.13,244.93,6.59]
[1757855153261,2.7636619,245.12,244.93,6.59]
[1757855153564,2.7636619,245.11,244.93,6.59]
[1757855153770,2.7636619,245.1,244.93,6.59]
[1757855153963,2.7636619,245.09,244.93,6.59]
[1757855154159,2.7636619,245.08,244.93,6.59]
[1757855154358,2.7636619,245.07,244.93,6.59]
[1757855154563,2.7636619,245.06,244.93,6.59]
[1757855154756,2.7636619,245.05,244.93,6.59]
[1757855154958,2.7636619,245.04,244.93,6.59]
[1757855155164,4.483497,245.12,244.93,6.59]
[1757855155366,7.24864345,245.11,244.93,6.59]
[1757855155568,2.76514645,245.1,244.93,6.59]
[1757855155768,2.76514645,245.09,244.93,6.59]
[1757855155969,2.76514645,245.08,244.93,6.59]
[1757855156269,2.76514645,245.07,244.93,6.59]
[1757855156469,2.76514645,245.06,244.93,6.59]
[1757855156671,2.76514645,245.05,244.93,6.59]
[1757855156873,2.76514645,245.04,244.93,6.59]
[1757855157168,2.76514645,245.03,244.93,6.59]
[1757855157466,12.4870701,245.13,244.93,6.59]
[1757855157467,2.76514645,245.02,244.93,6.59]
[1757855157662,2.76514645,245.01,244.93,6.59]
[1757855157866,2.77136931,245.0,244.93,6.59]
[1757855158066,4.483497,245.09,244.93,6.59]
[1757855158268,7.25486631,245.08,244.93,6.59]
[1757855158464,2.77136931,245.07,244.93,6.59]
[1757855158768,2.77136931,245.06,244.93,6.59]
[1757855158963,2.77136931,245.05,244.93,6.59]
[1757855159168,2.77136931,245.04,244.93,6.59]
[1757855159363,2.77136931,245.03,244.93,6.59]
[1757855159558,2.77136931,245.02,244.93,6.59]
[1757855159767,2.77136931,245.01,244.93,6.59]
[1757855159965,2.77136931,245.0,244.93,6.59]
[1757855160269,4.483497,245.09,244.93,6.59]
[1757855160461,2.77741557,245.08,244.93,6.59]
[1757855160662,2.77741557,245.07,244.93,6.59]
[1757855160858,2.77741557,245.06,244.93,6.59]
[1757855161162,2.77741557,245.05,244.93,6.59]
[1757855161362,2.77741557,245.04,244.93,6.59]
[1757855161668,2.77741557,245.03,244.93,6.59]
[1757855161871,2.77741557,245.02,244.93,6.59]
[1757855162066,4.483497,245.11,244.93,6.59]
[1757855162268,2.7778925,245.1,244.93,6.59]
[1757855162462,2.7778925,245.09,244.93,6.59]
[1757855162669,2.7778925,245.08,244.93,6.59]
[1757855162869,2.7778925,245.07,244.94,6.57]
[1757855163169,2.7778925,245.06,244.94,6.57]
[1757855163370,2.7778925,245.05,244.94,6.57]
[1757855163565,2.7778925,245.04,244.95,6.57]
[1757855163770,2.7778925,245.03,244.95,6.57]
[1757855164075,4.483497,245.12,244.95,6.57]
[1757855164263,2.77744193,245.11,244.95,6.57]
[1757855164470,2.77744193,245.1,244.95,6.57]
[1757855164673,2.77744193,245.09,244.95,6.57]
[1757855164866,2.77744193,245.08,244.95,6.57]
[1757855165063,2.77744193,245.07,244.95,6.57]
[1757855165269,2.77744193,245.06,244.95,6.57]
[1757855165468,4.483497,245.15,244.95,6.57]
[1757855165672,2.77712067,245.14,244.95,6.57]
[1757855165873,2.77712067,245.13,244.95,6.57]
[1757855166070,2.77712067,245.12,244.95,6.57]
[1757855166270,4.483497,245.15,244.95,6.57]
[1757855166271,2.77712067,245.11,244.95,6.57]
[1757855166570,2.77712067,245.1,244.95,6.57]
[1757855166771,2.77712067,245.09,244.95,6.57]
[1757855166974,2.77712067,245.08,244.95,6.57]
[1757855167167,2.77712067,245.07,244.95,6.57]
[1757855167362,4.483497,245.16,244.95,6.57]
[1757855167562,2.77633417,245.15,244.95,6.57]
[1757855167763,2.77633417,245.14,244.95,6.57]
[1757855167974,2.77633417,245.13,244.97,6.57]
[1757855168275,2.77633417,245.12,244.97,6.57]
[1757855168475,2.77633417,245.11,244.97,6.57]
[1757855168671,2.77633417,245.1,244.97,6.57]
[1757855168977,2.77633417,245.09,244.97,6.57]
[1757855169170,4.483497,245.18,244.97,6.57]
[1757855169370,2.77603206,245.17,244.97,6.57]
[1757855169570,2.77603206,245.16,244.97,6.57]
[1757855169773,2.77603206,245.15,244.97,6.57]
[1757855169972,2.77603206,245.14,244.97,6.57]
[1757855170174,2.77603206,245.13,244.97,6.57]
[1757855170376,11.38,245.24,244.97,6.57]
[1757855170377,15.863497,245.24,244.97,6.57]
[1757855170673,2.77368935,245.23,244.98,6.83937212]
[1757855170872,2.77368935,245.22,244.99,6.57]
[1757855171074,2.77368935,245.21,244.99,6.83937212]
[1757855171276,2.77368935,245.2,245.0,6.57]
[1757855171473,2.77368935,245.19,245.0,6.57]
[1757855171774,12.46710788,245.25,245.02,6.57]
[1757855171974,2.7721253,245.24,245.02,6.57]
[1757855172178,2.7721253,245.23,245.03,163.7]
[1757855172368,30.763497,245.33,245.04,6.57]
[1757855172566,2.76906822,245.32,245.04,6.57]
[1757855172771,2.76906822,245.31,245.05,101.7]
[1757855172971,2.76906822,245.3,245.06,6.57]
[1757855173170,2.76906822,245.29,245.07,6.57]
[1757855173472,2.76906822,245.28,245.07,6.57]
[1757855173672,2.76906822,245.27,245.07,108.27]
[1757855173974,4.483497,245.3,245.07,6.57]
[1757855173975,2.76906822,245.26,245.07,6.57]
[1757855174171,4.483497,245.29,245.07,6.57]
[1757855174366,4.483497,245.28,245.07,6.57]
[1757855175874,4.483497,245.27,245.07,6.57]
[1757855176075,4.483497,245.28,245.07,6.57]
[1757855176292,4.483497,245.27,245.07,6.57]
[1757855177074,4.483497,245.25,245.02,6.57]
[1757855177277,4.483497,245.24,245.02,6.57]
[1757855177475,48.54,245.23,245.02,6.57]
[1757855177676,53.023497,245.23,245.02,6.57]
[1757855178074,48.54,245.23,245.02,6.57]
[1757855179376,53.023497,245.23,245.02,6.57]
[1757855182278,4.483497,245.22,245.02,6.57]
[1757855182479,4.483497,245.2,244.93,6.57]
[1757855184880,51.52,245.19,244.93,6.57]
[1757855187183,56.003497,245.19,244.93,6.57]
[1757855187482,4.483497,245.18,244.93,6.57]
[1757855188281,4.483497,245.17,244.93,6.57]
[1757855188784,4.483497,245.16,244.93,6.57]
[1757855196284,101.66,245.15,244.93,6.57]
[1757855197485,101.66,245.15,244.95,6.43]
[1757855197691,101.66,245.15,244.95,25.48]
[1757855197892,101.66,245.15,244.96,6.43]
[1757855199590,4.483497,245.17,244.96,6.43]
[1757855199792,9.16,245.16,244.96,6.43]
[1757855203791,13.643497,245.16,244.96,6.43]
[1757855204086,9.16,245.16,244.96,6.43]
[1757855204993,31.0,245.15,244.96,6.43]
[1757855206691,4.483497,245.17,244.96,6.43]
[1757855206990,9.04,245.16,244.96,6.43]
[1757855209892,4.483497,245.18,244.96,6.43]
[1757855210086,30.42,245.15,244.96,6.43]
[1757855210491,51.84,245.15,244.96,6.43]
[1757855210795,4.483497,245.18,244.96,6.43]
[1757855210998,101.62,245.17,244.96,6.43]
[1757855211291,58.02,245.16,244.96,6.43]
[1757855211493,274.12,245.2,244.96,6.43]
[1757855211688,101.62,245.19,244.96,6.43]
[1757855212894,101.62,245.19,244.98,6.43]
[1757855216803,274.12,245.2,244.98,6.43]
[1757855217004,375.7,245.2,244.98,6.43]
[1757855217306,101.58,245.2,244.98,6.43]
[1757855217504,101.58,245.2,244.98,10.98745271]
[1757855217810,101.58,245.2,244.99,6.43]
[1757855218299,101.58,245.2,244.99,4.55745271]
[1757855218498,101.58,245.2,245.0,7.0]
[1757855218700,91.68,245.21,245.01,6.81]
[1757855219794,4.483497,245.24,245.01,6.81]
[1757855219994,4.483497,245.26,245.02,4.55745271]
[1757855220302,4.483497,245.26,245.03,6.81]
[1757855220504,106.063497,245.26,245.04,6.81]
[1757855221103,101.58,245.26,245.05,11.36745271]
[1757855221308,101.58,245.26,245.07,6.81]
[1757855223315,101.58,245.26,245.08,6.81]
[1757855224712,375.68,245.3,245.08,6.81]
[1757855227515,375.68,245.3,245.1,6.81]
[1757855231520,375.68,245.3,245.12,6.81]
[1757855234319,2.78770076,245.29,245.12,6.81]
[1757855235123,2.78770076,245.29,245.12,31.25]
[1757855235323,2.78770076,245.29,245.13,6.81]
[1757855236919,12.41835568,245.32,245.14,6.81]
[1757855237119,101.48,245.3,245.14,6.81]
[1757855237424,12.58,245.29,245.14,6.81]
[1757855237624,101.48,245.29,245.14,6.81]
[1757855240022,12.41886191,245.32,245.14,6.81]
[1757855240228,4.483497,245.41,245.14,6.81]
[1757855240525,104.24566028,245.4,245.14,6.81]
[1757855240726,2.78566028,245.39,245.14,6.81]
[1757855240918,14.97810405,245.39,245.14,6.81]
[1757855241118,2.78566028,245.38,245.14,6.81]
[1757855241329,101.46,245.39,245.14,6.81]
[1757855243223,101.46,245.39,245.14,62.0]
[1757855243428,101.46,245.39,245.15,6.81]
[1757855243630,113.62190329,245.39,245.15,6.81]
[1757855244127,101.46,245.39,245.15,6.81]
[1757855247225,101.46,245.39,245.16,62.0]
[1757855247430,101.46,245.39,245.17,6.81]
[1757855248031,286.38661338,245.44,245.17,6.81]
[1757855249926,101.4,245.45,245.17,6.81]
[1757855250131,152.06264901,245.53,245.17,19.05]
[1757855250331,80.27796276,245.52,245.18,7.02]
[1757855250533,2.77796276,245.51,245.18,7.02]
[1757855251632,2.77796276,245.51,245.18,12.24]
[1757855251828,2.77796276,245.51,245.19,19.26]
[1757855252137,2.77796276,245.51,245.22,7.02]
[1757855252340,2.77796276,245.51,245.24,7.02]
[1757855252539,2.77796276,245.51,245.26,7.02]
[1757855253431,77.5,245.52,245.26,7.02]
[1757855253631,2.77465965,245.51,245.26,7.02]
[1757855254634,77.5,245.52,245.28,7.02]
[1757855255137,77.5,245.52,245.29,7.02]
[1757855257036,2.77262303,245.51,245.3,101.34]
[1757855257937,2.77262303,245.51,245.31,55.42]
[1757855258138,2.77262303,245.51,245.31,63.56]
[1757855258643,2.77262303,245.51,245.29,7.02]
[1757855258836,2.77262303,245.51,245.3,69.44]
[1757855259346,2.77262303,245.51,245.29,7.02]
[1757855259542,2.77262303,245.51,245.3,101.32]
[1757855260138,2.77262303,245.51,245.31,7.02]
[1757855264237,2.77262303,245.51,245.33,7.02]
[1757855266950,2.77262303,245.5,245.33,7.02]
[1757855269050,35.56,245.51,245.33,7.02]
[1757855269850,2.76449185,245.5,245.33,7.02]
[1757855270349,35.56,245.51,245.33,7.02]
[1757855270545,12.32714087,245.53,245.33,7.02]
[1757855270750,2.76481204,245.52,245.33,7.02]
[1757855270950,31.16,245.55,245.33,7.02]
[1757855271150,2.76490954,245.54,245.33,7.02]
[1757855271350,15.06589613,245.54,245.33,7.02]
[1757855271553,2.76490954,245.53,245.33,7.02]
[1757855271850,2.76490954,245.52,245.33,7.02]
[1757855272149,31.16,245.55,245.33,7.02]
[1757855272350,2.76528924,245.54,245.33,7.02]
[1757855274149,2.76528924,245.54,245.35,7.02]
[1757855274852,15.27997189,245.54,245.35,7.02]
[1757855275052,2.76528924,245.53,245.35,7.02]
[1757855275550,2.76528924,245.52,245.35,7.02]
[1757855275752,31.16,245.55,245.35,7.02]
[1757855275948,2.76712758,245.54,245.35,7.02]
[1757855277655,2.76712758,245.54,245.37,7.02]
[1757855278056,15.23294129,245.54,245.37,7.02]
[1757855278254,2.76712758,245.53,245.37,7.02]
[1757855278754,31.16,245.55,245.37,7.02]
[1757855278950,2.77012746,245.54,245.37,7.02]
[1757855279767,2.77012746,245.53,245.37,7.02]
[1757855279958,333.92,245.58,245.37,7.02]
[1757855280157,2.77132537,245.57,245.37,7.02]
[1757855280456,2.77132537,245.56,245.37,7.02]
[1757855280648,2.77132537,245.55,245.37,7.02]
[1757855280853,2.77132537,245.54,245.37,7.02]
[1757855281054,2.77132537,245.53,245.37,7.02]
[1757855281252,2.77132537,245.52,245.37,7.02]
[1757855281558,12.01919102,245.57,245.37,7.02]
[1757855281758,2.77412967,245.56,245.37,7.02]
[1757855281957,2.77412967,245.55,245.37,7.02]
[1757855282156,2.77412967,245.54,245.37,7.02]
[1757855282459,2.77412967,245.53,245.37,7.02]
[1757855282659,2.77412967,245.52,245.39,7.04]
[1757855282855,273.9,245.58,245.39,7.04]
[1757855283055,2.77546752,245.57,245.39,7.04]
[1757855283257,2.77546752,245.56,245.39,7.04]
[1757855283457,2.77546752,245.55,245.39,7.04]
[1757855283656,2.77546752,245.54,245.39,7.04]
[1757855283861,2.77546752,245.53,245.39,7.04]
[1757855284060,2.77546752,245.52,245.39,7.04]
[1757855284259,2.77546752,245.51,245.39,7.04]
[1757855284460,286.27466906,245.58,245.39,7.04]
[1757855284662,2.77951258,245.57,245.39,7.04]
[1757855284855,2.77951258,245.56,245.39,7.04]
[1757855285060,2.77951258,245.55,245.39,7.04]
[1757855285255,16.51219851,245.64,245.39,7.04]
[1757855285564,2.78153441,245.63,245.39,7.04]
[1757855285755,2.78153441,245.62,245.39,7.04]
[1757855286061,2.78153441,245.61,245.39,7.04]
[1757855286257,2.78153441,245.6,245.39,7.04]
[1757855286559,2.78153441,245.59,245.39,7.04]
[1757855286761,2.78153441,245.58,245.39,7.04]
[1757855287058,2.78153441,245.57,245.39,7.04]
[1757855287260,2.78153441,245.56,245.39,7.04]
[1757855287458,2.78173136,245.55,245.39,7.04]
[1757855287762,4.483497,245.64,245.39,7.04]
[1757855287961,2.78169829,245.63,245.39,7.04]
[1757855288155,2.78169829,245.62,245.39,7.04]
[1757855288351,2.78169829,245.61,245.39,7.04]
[1757855288658,2.78169829,245.6,245.39,7.04]
[1757855288851,2.78169829,245.59,245.39,7.04]